fUST/lending_fUST_20240904
["ID","MTS","AMOUNT","RATE_DAILY","PERIOD"]
[337057348,1725396429885,-500.0,0.00026489,2]
[337057349,1725396429906,-500.0,0.00026489,2]
[337057350,1725396429927,-38002.85886928,0.0002649,15]
[337057351,1725396429951,-9988.98982419,0.0002649,2]
[337057353,1725396552108,-194.17853438,0.00025686,2]
[337057373,1725396632212,-755.46046826,0.00025558,8]
[337057374,1725396632224,-55.82146562,0.00025686,2]
[337057375,1725396632234,-250.0,0.00025757,2]
[337057376,1725396632244,-755.46046826,0.00025813,8]
[337057377,1725396632254,-250.0,0.00025827,2]
[337057378,1725396632264,-250.0,0.00025898,2]
[337057379,1725396632274,-133.09759786,0.00025968,2]
[337057381,1725396639414,-116.90240214,0.00025968,2]
[337057382,1725396639424,-250.0,0.00026038,2]
[337057383,1725396639434,-755.46046826,0.00026069,8]
[337057384,1725396639443,-250.0,0.00026109,2]
[337057385,1725396639452,-250.0,0.00026179,2]
[337057386,1725396639461,-250.0,0.0002625,2]
[337057387,1725396639471,-250.0,0.0002632,2]
[337057388,1725396639587,-755.46046826,0.00026324,8]
[337057389,1725396639596,-300.0,0.00026389,2]
[337057390,1725396639605,-1464.48565057,0.0002639,2]
[337057391,1725396639615,-1723.40125719,0.0002639,2]
[337057392,1725396639625,-250.0,0.00026391,2]
[337057393,1725396639634,-250.0,0.00026461,2]
[337057394,1725396639644,-1975.52,0.0002647,3]
[337057395,1725396639653,-1646.27,0.0002647,3]
[337057396,1725396639666,-500.0,0.00026473,2]
[337057397,1725396639676,-161.07763022,0.00026473,2]
[337057398,1725396639685,-500.0,0.00026473,2]
[337057399,1725396639694,-205.22373299,0.00026479,2]
[337057400,1725396639704,-500.0,0.00026479,2]
[337057401,1725396639713,-397.13764615,0.00026479,2]
[337057402,1725396639722,-500.0,0.00026479,2]
[337057403,1725396639732,-500.0,0.00026479,2]
[337057404,1725396639741,-207.85814318,0.00026479,2]
[337057405,1725396639750,-500.0,0.00026479,2]
[337057406,1725396639759,-500.0,0.00026479,2]
[337057407,1725396639769,-500.0,0.00026479,2]
[337057408,1725396639778,-500.0,0.00026479,2]
[337057409,1725396639788,-561.3288008,0.00026479,2]
[337057410,1725396639797,-462.26258265,0.00026479,2]
[337057411,1725396639808,-500.0,0.00026479,2]
[337057412,1725396639818,-266.98676622,0.00026479,2]
[337057413,1725396639827,-500.0,0.00026479,2]
[337057415,1725396639836,-500.0,0.00026479,2]
[337057416,1725396639846,-500.0,0.00026479,2]
[337057417,1725396639855,-477.09009985,0.00026479,2]
[337057418,1725396639864,-500.0,0.00026479,2]
[337057419,1725396639873,-500.0,0.00026479,2]
[337057420,1725396639882,-500.0,0.00026479,2]
[337057421,1725396639893,-500.0,0.00026479,2]
[337057422,1725396639902,-500.0,0.00026479,2]
[337057423,1725396639911,-500.0,0.00026479,2]
[337057424,1725396639921,-500.0,0.00026479,2]
[337057425,1725396639939,-500.0,0.00026479,2]
[337057426,1725396639948,-557.02909571,0.00026479,2]
[337057427,1725396639957,-2496.49827557,0.0002648,15]
[337057428,1725396639973,-41000.0,0.0002648,15]
[337057429,1725396640324,-17813.49107287,0.0002648,15]
[337057430,1725396640333,-367648.486813,0.0002648,3]
[337057431,1725396640343,-357786.10634596,0.0002648,2]
[337057474,1725396646865,-500.0,0.00026473,2]
[337057475,1725396646875,-109648.58067869,0.0002648,2]
[337057476,1725396646887,-781.34111712,0.0002648,2]
[337057493,1725397545161,-189.9146093,0.00023774,2]
[337057494,1725397545183,-169.602249,0.00023931,2]
[337057495,1725397545205,-2878.1059696,0.00024182,2]
[337057496,1725397545227,-250.0,0.00024806,2]
[337057497,1725397545249,-250.0,0.00024874,2]
[337057498,1725397545362,-250.0,0.00024942,2]
[337057499,1725397545387,-250.0,0.0002501,2]
[337057500,1725397545411,-250.0,0.00025078,2]
[337057501,1725397545432,-250.0,0.00025146,2]
[337057502,1725397545455,-250.0,0.00025214,2]
[337057503,1725397545477,-250.0,0.00025282,2]
[337057504,1725397545498,-300.0,0.00025291,2]
[337057505,1725397545518,-5070.45221408,0.00025292,2]
[337057506,1725397545540,-250.0,0.0002535,2]
[337057507,1725397545561,-5185.22638556,0.00025386,2]
[337057508,1725397545584,-250.0,0.00025418,2]
[337057509,1725397545606,-150.0,0.00025426,2]
[337057510,1725397545628,-24900.0,0.00025485,2]
[337057511,1725397545661,-250.0,0.00025486,2]
[337057512,1725397545684,-250.0,0.00025554,2]
[337057513,1725397545705,-250.0,0.00025622,2]
[337057514,1725397545726,-5070.45221408,0.00025659,2]
[337057515,1725397545748,-250.0,0.0002569,2]
[337057516,1725397545769,-150.0,0.00025728,2]
[337057517,1725397545791,-250.0,0.00025758,2]
[337057518,1725397545813,-250.0,0.00025826,2]
[337057519,1725397545834,-5070.45221408,0.0002588,2]
[337057520,1725397545855,-250.0,0.00025894,2]
[337057521,1725397545879,-250.0,0.00025962,2]
[337057522,1725397545899,-150.0,0.00026025,2]
[337057523,1725397545921,-250.0,0.0002603,2]
[337057524,1725397545944,-250.0,0.00026098,2]
[337057525,1725397545965,-150.0,0.00026127,2]
[337057526,1725397545987,-5070.4522141,0.00026137,2]
[337057527,1725397546008,-757.34478556,0.00026348,8]
[337057528,1725397546029,-3000.0,0.000264,2]
[337057529,1725397546050,-3000.0,0.0002641,2]
[337057530,1725397546072,-3000.0,0.0002642,2]
[337057531,1725397546093,-3000.0,0.0002643,2]
[337057532,1725397546115,-3000.0,0.0002644,2]
[337057533,1725397546136,-3000.0,0.0002645,2]
[337057534,1725397546159,-3000.0,0.0002646,2]
[337057535,1725397546180,-3000.0,0.0002647,2]
[337057536,1725397546203,-3000.0,0.0002648,2]
[337057537,1725397546225,-3000.0,0.0002649,2]
[337057538,1725397546246,-3000.0,0.000265,2]
[337057539,1725397546267,-1213.11,0.000265,3]
[337057540,1725397546289,-842.44,0.000265,3]
[337057541,1725397546310,-702.03,0.000265,3]
[337057542,1725397546331,-829.16007761,0.00026507,3]
[337057543,1725397546353,-275.23223332,0.00026509,2]
[337057544,1725397546376,-3000.0,0.0002651,2]
[337057545,1725397546398,-952.7,0.0002651,3]
[337057546,1725397546420,-1010.92,0.0002651,3]
[337057547,1725397546442,-3000.0,0.0002652,2]
[337057548,1725397546465,-3000.0,0.0002653,2]
[337057549,1725397546487,-3000.0,0.0002654,2]
[337057550,1725397546509,-3000.0,0.0002655,2]
[337057551,1725397546604,-3000.0,0.0002656,2]
[337057552,1725397546629,-3000.0,0.0002657,2]
[337057553,1725397546652,-3000.0,0.0002658,2]
[337057554,1725397546674,-3000.0,0.0002659,2]
[337057555,1725397546697,-3000.0,0.000266,2]
[337057556,1725397546720,-3000.0,0.0002661,2]
[337057557,1725397546742,-3000.0,0.0002662,2]
[337057558,1725397546765,-3000.0,0.0002663,2]
[337057559,1725397546787,-3000.0,0.0002664,2]
[337057560,1725397546809,-3000.0,0.0002665,2]
[337057561,1725397546831,-3000.0,0.0002666,2]
[337057562,1725397546853,-3000.0,0.0002667,2]
[337057563,1725397546879,-3000.0,0.0002668,2]
[337057564,1725397546902,-3000.0,0.0002669,2]
[337057565,1725397546926,-1551.06113148,0.000267,2]
[337057566,1725397546953,-3000.0,0.000267,2]
[337057567,1725397546976,-3000.0,0.0002671,2]
[337057568,1725397546998,-3000.0,0.0002672,2]
[337057569,1725397547022,-3000.0,0.0002673,2]
[337057570,1725397547047,-3000.0,0.0002674,2]
[337057571,1725397547070,-3000.0,0.0002675,2]
[337057572,1725397547091,-3000.0,0.0002676,2]
[337057573,1725397547112,-277.99635231,0.00026768,2]
[337057574,1725397547133,-500.0,0.00026768,2]
[337057575,1725397547154,-500.0,0.00026768,2]
[337057576,1725397547177,-195.50070022,0.00026768,2]
[337057577,1725397547218,-500.0,0.00026768,2]
[337057578,1725397547265,-500.0,0.00026768,2]
[337057579,1725397547310,-500.0,0.00026768,2]
[337057580,1725397547351,-500.0,0.00026768,2]
[337057581,1725397547398,-500.0,0.00026768,2]
[337057582,1725397547437,-500.0,0.00026768,2]
[337057583,1725397547476,-500.0,0.00026768,2]
[337057584,1725397547509,-500.0,0.00026768,2]
[337057585,1725397547547,-482.85052756,0.00026768,2]
[337057586,1725397547581,-500.0,0.00026768,2]
[337057587,1725397547618,-13362.61716914,0.00026769,15]
[337057588,1725397548166,-20448.39031697,0.00026769,15]
[337057589,1725397548206,-42964.38322709,0.00026769,3]
[337057591,1725397637178,-189.9146093,0.00024478,2]
[337057592,1725397637200,-300.0,0.00025732,2]
[337057593,1725397637223,-24900.0,0.00025733,2]
[337057594,1725397637244,-338.56,0.00026759,3]
[337057595,1725397637266,-1000.0,0.00026759,2]
[337057596,1725397637288,-1007.63701077,0.00026759,2]
[337057597,1725397637309,-528.6,0.00026759,3]
[337057598,1725397637332,-440.5,0.00026759,3]
[337057599,1725397637353,-367.08,0.00026759,3]
[337057600,1725397637376,-500.0,0.00026768,2]
[337057601,1725397637398,-500.0,0.00026768,2]
[337057602,1725397637421,-500.0,0.00026768,2]
[337057603,1725397637444,-30867.70164891,0.00026769,3]
[337057604,1725397637468,-45355.77650002,0.00026769,2]
[337057605,1725397642163,-5185.22638556,0.00026669,2]
[337057606,1725397642185,-500.0,0.00026768,2]
[337057607,1725397642206,-12530.41320944,0.00026769,2]
[337057608,1725397650111,-305.9,0.00026759,3]
[337057609,1725397650135,-168801.68506389,0.00026769,2]
[337057625,1725397832349,-260.0,0.00024932,2]
[337057626,1725397832361,-173.867819,0.00024972,2]
[337057627,1725397832370,-260.0,0.00025,2]
[337057628,1725397832379,-150.0,0.00025625,2]
[337057629,1725397832388,-3208.27654849,0.00025747,2]
[337057630,1725397832405,-610.09742093,0.00025747,2]
[337057638,1725397838522,-1252.07824466,0.00025747,2]
[337057639,1725397838534,-5070.45221408,0.00025757,2]
[337057640,1725397838546,-150.0,0.00025797,2]
[337057641,1725397838556,-300.0,0.00025888,2]
[337057642,1725397838566,-260.0,0.0002589,2]
[337057643,1725397838577,-250.0,0.00025922,2]
[337057644,1725397838586,-250.0,0.00025993,2]
[337057645,1725397838596,-250.0,0.00026064,2]
[337057646,1725397838606,-5070.45221408,0.00026122,2]
[337057647,1725397838615,-250.0,0.00026135,2]
[337057648,1725397838624,-250.0,0.00026207,2]
[337057649,1725397838634,-150.0,0.00026273,2]
[337057650,1725397838644,-250.0,0.00026278,2]
[337057651,1725397838655,-250.0,0.00026349,2]
[337057652,1725397838665,-250.0,0.0002642,2]
[337057653,1725397838674,-150.0,0.0002648,2]
[337057654,1725397838684,-250.0,0.00026491,2]
[337057655,1725397838694,-5070.4522141,0.00026518,2]
[337057656,1725397838703,-250.0,0.00026562,2]
[337057657,1725397838713,-757.34478556,0.00026609,10]
[337057658,1725397838722,-1032.88610153,0.00026609,10]
[337057659,1725397838732,-250.0,0.00026633,2]
[337057660,1725397838742,-4537.0730874,0.00026649,2]
[337057661,1725397838752,-1395.95501835,0.0002667,2]
[337057662,1725397838762,-250.0,0.00026704,2]
[337057663,1725397838771,-714.7,0.00026749,3]
[337057664,1725397838780,-1305.93,0.00026749,3]
[337057665,1725397838790,-500.0,0.00026758,2]
[337057666,1725397838800,-194.59744662,0.00026758,2]
[337057667,1725397838810,-500.0,0.00026758,2]
[337057668,1725397838819,-500.0,0.00026758,2]
[337057669,1725397838830,-336.85049016,0.00026758,2]
[337057670,1725397838839,-487.99536929,0.00026758,2]
[337057671,1725397838849,-500.0,0.00026758,2]
[337057672,1725397838859,-500.0,0.00026758,2]
[337057673,1725397838868,-500.0,0.00026758,2]
[337057674,1725397838877,-500.0,0.00026758,2]
[337057675,1725397838887,-284.69315341,0.00026758,2]
[337057676,1725397838897,-500.0,0.00026758,2]
[337057677,1725397838908,-500.0,0.00026758,2]
[337057678,1725397838918,-252527.47319528,0.00026759,3]
[337057679,1725397839414,-32764.62150972,0.00026759,3]
[337057680,1725397839425,-73548.22812864,0.00026759,2]
[337057684,1725397840802,-21577.79814157,0.00026759,2]
[337057685,1725397840815,-2540.42543453,0.00026759,2]
[337057686,1725397840827,-3021.79076428,0.00026759,2]
[337057688,1725397841003,-11866.196641,0.00026759,2]
[337057696,1725397843646,-60433.23645198,0.00026759,2]
[337057697,1725397843656,-3000.0,0.0002677,2]
[337057698,1725397843665,-500.0,0.00026773,2]
[337057699,1725397843675,-500.0,0.00026773,2]
[337057700,1725397843684,-500.0,0.00026773,2]
[337057701,1725397843693,-310.11851247,0.00026773,2]
[337057702,1725397843702,-250.0,0.00026775,2]
[337057703,1725397843711,-16610.83073149,0.0002678,15]
[337057718,1725397846499,-294.67301156,0.0002678,15]
[337057719,1725397846508,-4802.605219,0.0002678,2]
[337057720,1725397846518,-13692.4534432,0.000268,14]
[337057721,1725397846563,-2023.959955,0.000268,14]
[337057767,1725398792157,-229.46777576,0.00024159,2]
[337057778,1725398945194,-162.28866118,0.00020377,2]
[337057819,1725399032518,-200.0,0.000215,7]
[337057820,1725399032528,-300.0,0.00024159,2]
[337057821,1725399032538,-133.25,0.00024159,2]
[337057822,1725399032550,-166.75,0.00024159,2]
[337057823,1725399032560,-24900.0,0.0002416,2]
[337057824,1725399032569,-2878.1059696,0.00024184,2]
[337057825,1725399032579,-169.602252,0.00024352,2]
[337057826,1725399032589,-251.0,0.00024618,2]
[337057827,1725399032599,-484.7348308,0.00024698,2]
[337057829,1725399032608,-250.0,0.00024725,2]
[337057831,1725399032618,-163.0,0.00024932,2]
[337057833,1725399032628,-163.0,0.00025,2]
[337057834,1725399032638,-250.0,0.0002503,2]
[337057835,1725399032648,-4439.99529852,0.00025067,2]
[337057836,1725399032658,-250.0,0.00025099,2]
[337057838,1725399032668,-250.0,0.00025167,2]
[337057840,1725399032677,-250.0,0.00025236,2]
[337057841,1725399032691,-250.0,0.00025305,2]
[337057842,1725399032701,-250.0,0.00025373,2]
[337057843,1725399032711,-250.0,0.00025442,2]
[337057844,1725399032721,-250.0,0.00025511,2]
[337057845,1725399032730,-250.0,0.00025579,2]
[337057846,1725399032740,-250.0,0.00025648,2]
[337057847,1725399032750,-600.0,0.00025687,10]
[337057848,1725399032760,-250.0,0.00025717,2]
[337057849,1725399032771,-250.0,0.00025785,2]
[337057850,1725399032781,-250.0,0.00025854,2]
[337057851,1725399032793,-163.0,0.0002589,2]
[337057852,1725399032803,-250.0,0.00025923,2]
[337057853,1725399032813,-250.0,0.00025991,2]
[337057854,1725399032823,-611.48193832,0.00025996,11]
[337057855,1725399032834,-250.0,0.0002606,2]
[337057856,1725399032846,-250.0,0.00026129,2]
[337057857,1725399032856,-250.0,0.00026197,2]
[337057858,1725399032868,-250.0,0.00026266,2]
[337057859,1725399032878,-250.0,0.00026335,2]
[337057860,1725399032889,-610.09742093,0.00026393,2]
[337057861,1725399032900,-3000.0,0.000264,2]
[337057862,1725399032913,-3000.0,0.0002641,2]
[337057863,1725399032924,-3000.0,0.0002642,2]
[337057864,1725399032935,-3000.0,0.0002643,2]
[337057865,1725399032947,-3000.0,0.0002644,2]
[337057866,1725399032956,-3000.0,0.0002645,2]
[337057867,1725399032966,-3000.0,0.0002646,2]
[337057868,1725399032976,-3000.0,0.0002647,2]
[337057869,1725399032988,-3000.0,0.0002648,2]
[337057870,1725399032999,-3000.0,0.0002649,2]
[337057871,1725399033009,-3000.0,0.000265,2]
[337057872,1725399033019,-3000.0,0.0002651,2]
[337057873,1725399033029,-3000.0,0.0002652,2]
[337057874,1725399033039,-2520.18604746,0.0002653,2]
[337057896,1725399038646,-366.99479238,0.0002653,2]
[337057898,1725399038659,-112.81916016,0.0002653,2]
[337057901,1725399038669,-3000.0,0.0002654,2]
[337057903,1725399038680,-3000.0,0.0002655,2]
[337057905,1725399038691,-3000.0,0.0002656,2]
[337057907,1725399038702,-1088.28,0.0002656,3]
[337057909,1725399038712,-3000.0,0.0002657,2]
[337057911,1725399038722,-61176.9666289,0.0002657,3]
[337057914,1725399038733,-420.0,0.00026575,2]
[337057916,1725399038743,-3000.0,0.0002658,2]
[337057918,1725399038754,-3000.0,0.0002659,2]
[337057920,1725399038764,-3000.0,0.000266,2]
[337057922,1725399038774,-3000.0,0.0002661,2]
[337057924,1725399038783,-1256.35951647,0.000267,2]
[337057926,1725399038793,-260.27629339,0.00026773,2]
[337057928,1725399038802,-500.0,0.00026773,2]
[337057930,1725399038811,-156.78300178,0.00026773,2]
[337057932,1725399038821,-585.79534311,0.00026779,2]
[337057934,1725399038829,-500.0,0.00026779,2]
[337057936,1725399038841,-500.0,0.00026779,2]
[337057938,1725399038852,-500.0,0.00026779,2]
[337057941,1725399038863,-500.0,0.00026779,2]
[337057943,1725399038873,-441.5967585,0.00026779,2]
[337057945,1725399038882,-61176.9666289,0.0002678,3]
[337057947,1725399038892,-180526.05718112,0.0002678,3]
[337057949,1725399038904,-3004.84270588,0.0002678,3]
[337057950,1725399038913,-8452.75187152,0.000268,15]
[337057951,1725399038923,-6444.20129899,0.000268,15]
[337057953,1725399038934,-287.38831,0.000268,15]
[337057973,1725399040848,-1702.799012,0.000268,15]
[337057974,1725399040860,-3287.02137179,0.000268,15]
[337057975,1725399040872,-2764.59999993,0.000268,15]
[337057976,1725399040883,-1333.12899539,0.000268,15]
[337057977,1725399040908,-302.76805848,0.000268,15]
[337058049,1725400017146,-171.16414,0.00024119,2]
[337058050,1725400017169,-68.45417959,0.00024341,2]
[337058052,1725400164120,-3000.0,0.00023679,2]
[337058053,1725400164143,-309.521094,0.00023791,2]
[337058086,1725400231735,-300.0,0.00024478,2]
[337058087,1725400231745,-20974.11309206,0.00024479,2]
[337058088,1725400231756,-3925.88690794,0.00024479,2]
[337058089,1725400231766,-744.4024012,0.00024479,2]
[337058090,1725400231775,-4089.75987896,0.000249,2]
[337058091,1725400231786,-163.0,0.00025,2]
[337058092,1725400231809,-163.0,0.0002589,2]
[337058093,1725400231821,-250.0,0.00026154,2]
[337058094,1725400231832,-150.0,0.000264,2]
[337058095,1725400231843,-160.4,0.0002641,2]
[337058096,1725400231855,-182.34904719,0.0002669,2]
[337058097,1725400231867,-1130.72356485,0.000267,2]
[337058098,1725400231878,-482.64,0.0002677,3]
[337058099,1725400231888,-826.46,0.0002677,3]
[337058100,1725400231900,-688.71,0.0002677,3]
[337058101,1725400231912,-244.06064683,0.00026773,2]
[337058102,1725400231923,-164.41431802,0.00026779,2]
[337058103,1725400231934,-150.01,0.00026779,2]
[337058104,1725400231944,-500.0,0.00026779,2]
[337058105,1725400231954,-410.05674017,0.00026779,2]
[337058106,1725400231965,-500.0,0.00026779,2]
[337058107,1725400231976,-209.11773095,0.00026779,2]
[337058108,1725400231986,-500.0,0.00026779,2]
[337058109,1725400231995,-500.0,0.00026779,2]
[337058110,1725400232005,-500.0,0.00026779,2]
[337058111,1725400232014,-500.0,0.00026779,2]
[337058112,1725400232024,-500.0,0.00026779,2]
[337058113,1725400232034,-206.2664494,0.00026779,2]
[337058114,1725400232044,-24772.13810968,0.0002678,3]
[337058137,1725400238085,-250.0,0.00025366,2]
[337058138,1725400238095,-250.0,0.00025436,2]
[337058139,1725400238105,-250.0,0.00025506,2]
[337058140,1725400238115,-250.0,0.00025575,2]
[337058141,1725400238125,-250.0,0.00025645,2]
[337058142,1725400238135,-250.0,0.00025714,2]
[337058143,1725400238145,-250.0,0.00025784,2]
[337058145,1725400238154,-250.0,0.00025853,2]
[337058146,1725400238164,-250.0,0.00025923,2]
[337058147,1725400238174,-250.0,0.00025992,2]
[337058148,1725400238183,-250.0,0.00026062,2]
[337058149,1725400238193,-250.0,0.00026132,2]
[337058150,1725400238202,-250.0,0.00026201,2]
[337058151,1725400238211,-250.0,0.00026271,2]
[337058152,1725400238221,-250.0,0.0002634,2]
[337058153,1725400238230,-250.0,0.0002641,2]
[337058154,1725400238239,-250.0,0.00026479,2]
[337058155,1725400238248,-250.0,0.00026549,2]
[337058156,1725400238258,-250.0,0.00026619,2]
[337058157,1725400238267,-250.0,0.00026688,2]
[337058158,1725400238276,-573.93,0.0002677,3]
[337058159,1725400238287,-250524.21172032,0.0002678,3]
[337058160,1725400238297,-6434.29963924,0.000268,15]
[337058161,1725400238307,-35623.94764181,0.000268,15]
[337058162,1725400238318,-401571.5966018,0.000268,14]
[337058163,1725400238328,-564.9,0.000268,14]
[337058164,1725400238339,-181.43,0.000268,14]
[337058165,1725400238351,-150.112233,0.000268,5]
[337058166,1725400238360,-420.0,0.00026925,2]
[337058167,1725400238376,-6685.48429826,0.00027,3]
[337058168,1725400238387,-164.0,0.00027185,2]
[337058169,1725400238397,-160.4,0.00027279,3]
[337058170,1725400238408,-150.112235,0.000273,7]
[337058171,1725400238418,-306.0,0.00027315,2]
[337058172,1725400238430,-500.0,0.00027373,2]
[337058173,1725400238439,-155.02,0.00027399,2]
[337058174,1725400238450,-98980.43,0.000274,14]
[337058175,1725400238460,-169657.61,0.000274,14]
[337058176,1725400238470,-151.0,0.000274,7]
[337058177,1725400238479,-151.0,0.000274,7]
[337058178,1725400238490,-151.0,0.000274,7]
[337058179,1725400238502,-151.0,0.000274,7]
[337058180,1725400238513,-151.148213,0.000274,7]
[337058181,1725400238522,-151.148213,0.000274,7]
[337058182,1725400238532,-151.0,0.000274,7]
[337058183,1725400238541,-151.0,0.000274,7]
[337058184,1725400238551,-1541.634354,0.000274,7]
[337058185,1725400238561,-151.0,0.000274,2]
[337058186,1725400238570,-1541.634354,0.000274,7]
[337058187,1725400238579,-151.571377,0.000274,7]
[337058188,1725400238589,-151.0,0.000274,7]
[337058189,1725400238598,-3438.311573,0.00027835,2]
[337058190,1725400238608,-1000.0,0.00027921,5]
[337058191,1725400238622,-600.0,0.00027936,20]
[337058192,1725400238631,-500.0,0.00027943,2]
[337058193,1725400238642,-160.4,0.00028148,3]
[337058194,1725400238652,-3438.311573,0.00028335,2]
[337058195,1725400238662,-306.0,0.00028351,2]
[337058196,1725400238672,-1000.0,0.00028491,2]
[337058197,1725400238682,-50393.31532656,0.000288,2]
[337058214,1725400242941,-150.01,0.00026779,2]
[337058215,1725400242951,-13.40649938,0.000288,2]
[337058219,1725400245875,-7231.74915928,0.000288,2]
[337062940,1725401252424,-171.4310154,0.00025066,2]
[337062984,1725401437983,-250.0,0.00025065,2]
[337062985,1725401437993,-159.490494,0.00025066,2]
[337062986,1725401438002,-250.0,0.00025134,2]
[337062987,1725401438012,-250.0,0.00025203,2]
[337062988,1725401438021,-250.0,0.00025272,2]
[337062989,1725401438031,-250.0,0.0002534,2]
[337062990,1725401438040,-250.0,0.00025409,2]
[337062991,1725401438050,-300.0,0.00025469,2]
[337062992,1725401438061,-10872.68731448,0.0002547,2]
[337063006,1725401440127,-14027.31268552,0.0002547,2]
[337063007,1725401440138,-250.0,0.00025478,2]
[337063008,1725401440147,-309.5210958,0.0002548,2]
[337063009,1725401440156,-250.0,0.00025547,2]
[337063010,1725401440166,-250.0,0.00025615,2]
[337063011,1725401440175,-250.0,0.00025684,2]
[337063012,1725401440185,-250.0,0.00025753,2]
[337063013,1725401440194,-250.0,0.00025822,2]
[337063014,1725401440203,-250.0,0.0002589,2]
[337063015,1725401440213,-250.0,0.00025959,2]
[337063016,1725401440222,-3578.53989409,0.00025996,2]
[337063017,1725401440231,-250.0,0.00026028,2]
[337063018,1725401440240,-600.0,0.00026044,12]
[337063020,1725401440250,-250.0,0.00026097,2]
[337063021,1725401440261,-250.0,0.00026165,2]
[337063022,1725401440270,-250.0,0.00026234,2]
[337063023,1725401440280,-250.0,0.00026303,2]
[337063024,1725401440289,-250.0,0.00026371,2]
[337063025,1725401440299,-3000.0,0.000264,2]
[337063026,1725401440308,-3000.0,0.0002641,2]
[337063027,1725401440317,-3000.0,0.0002642,2]
[337063028,1725401440327,-3000.0,0.0002643,2]
[337063029,1725401440336,-3000.0,0.0002644,2]
[337063030,1725401440345,-2471.06197168,0.0002645,2]
[337063103,1725402442131,-171.16414,0.00025013,2]
[337063104,1725402442155,-36.0641592,0.0002511,2]
[337063105,1725402503730,10068.35826917,0.000125,2]
[337063447,1725402640459,-213.9358408,0.0002511,2]
[337063449,1725402640475,-250.0,0.00025179,2]
[337063452,1725402640490,-300.0,0.0002523,2]
[337063454,1725402640505,-24900.0,0.00025231,2]
[337063457,1725402640520,-250.0,0.00025248,2]
[337063459,1725402640536,-250.0,0.00025317,2]
[337063462,1725402640552,-250.0,0.00025386,2]
[337063465,1725402640568,-250.0,0.00025455,2]
[337063467,1725402640583,-250.0,0.00025524,2]
[337063470,1725402640598,-250.0,0.00025593,2]
[337063472,1725402640612,-250.0,0.00025661,2]
[337063475,1725402640628,-250.0,0.0002573,2]
[337063478,1725402640644,-250.0,0.00025799,2]
[337063481,1725402640659,-250.0,0.00025868,2]
[337063483,1725402640674,-250.0,0.00025937,2]
[337063486,1725402640689,-250.0,0.00026006,2]
[337063488,1725402640704,-250.0,0.00026075,2]
[337063490,1725402640716,-250.0,0.00026144,2]
[337063492,1725402640726,-250.0,0.00026212,2]
[337063494,1725402640736,-250.0,0.00026281,2]
[337063497,1725402640747,-250.0,0.0002635,2]
[337063499,1725402640759,-208.0368303,0.00026356,2]
[337063516,1725402640915,-208.0368303,0.00026356,2]
[337063520,1725402640939,-208.0368303,0.00026356,2]
[337063521,1725402640950,-208.0368303,0.00026356,2]
[337063522,1725402640961,-1797.77080226,0.000264,5]
[337063550,1725402643390,-8202.22919774,0.000264,5]
[337063551,1725402643400,-3000.0,0.000264,2]
[337063552,1725402643410,-3491.757188,0.0002641,2]
[337063553,1725402643419,-250.0,0.00026419,2]
[337063554,1725402643428,-151.78,0.000268,14]
[337063555,1725402643438,-260.27629339,0.0002682,2]
[337063556,1725402643450,-6685.48429826,0.00027,3]
[337063557,1725402643459,-151.0,0.00027297,3]